[Event "Festival Groningen-A 2024"]
[Site "Groningen"]
[Date "2024.12.22"]
[Round "2.18"]
[White "Koster, Ramon"]
[Black "Hummel, Paul"]
[Result "1-0"]
[ECO "E40"]
[WhiteElo "2330"]
[BlackElo "2160"]
[Annotator "RC"]
[PlyCount "85"]
[EventDate "2024.12.21"]
[EventType "swiss"]
[EventCountry "NED"]
[SourceTitle "playchess.com"]
[Source "ChessBase"]
[SourceQuality "1"]
[TimeControl "40/5400+30:1800+30"]

1. d4 {[%emt 0:00:03]} Nf6 {[%emt 0:00:06]} 2. c4 {[%emt 0:00:03]} e6 {[%emt 0:00:21]} 3. Nc3 {[%emt 0:00:06]} Bb4 {[%emt 0:00:35]} 4. e3 {[%emt 0:00:25]} O-O {[%emt 0:01:27]} 5. Bd3 {[%emt 0:00:54]} Bxc3+ {[%emt 0:00:59]} 6. bxc3 {[%emt 0:00:12]} d6 {[%emt 0:00:10]} 7. Ne2 {[%emt 0:02:15]} Nc6 {[%emt 0:10:29]} 8. O-O {[%emt 0:02:46]} b6 {[%emt 0:03:42]} 9. f4 {[%emt 0:17:45]} d5 {[%emt 0:08:39]} 10. Ba3 {[%emt 0:11:48]} Re8 {[%emt 0:01:18]} 11. Ng3 {[%emt 0:02:51]} Ba6 {[%emt 0:10:32]} 12. f5 {[%emt 0:15:05]} dxc4 {[%emt 0:09:08]} 13. Bc2 {[%emt 0:00:53]} e5 {[%emt 0:00:57]} 14. Qf3 {[%emt 0:10:45]} Bb7 {[%emt 0:06:49]} 15. Rad1 {[%emt 0:00:10]} exd4 {[%emt 0:02:00]} 16. cxd4 {[%emt 0:02:10]} Nb4 {[%emt 0:06:16]} 17. Qe2 {[%emt 0:01:33]} Nxc2 {[%emt 0:02:16]} 18. Qxc2 {[%emt 0:00:04]} Qd5 {[%emt 0:03:33]} 19. Bc1 {[%emt 0:01:11]} b5 {[%emt 0:01:29]} 20. Rf4 {[%emt 0:03:28]} b4 {[%emt 0:02:43]} 21. e4 {[%emt 0:06:56]} Nxe4 {[%emt 0:02:15]} 22. Nh5 {[%emt 0:00:36]} b3 {[%emt 0:05:57]} 23. axb3 {[%emt 0:02:03]} cxb3 {[%emt 0:00:02]} 24. Qd3 {[%emt 0:01:18]} c5 {[%emt 0:08:32]} 25. Qh3 {[%emt 0:13:17]} Ng5 {[%emt 0:06:10]} 26. Qg4 {[%emt 0:00:45]} Qxg2+ {[%emt 0:01:02]} 27. Qxg2 {[%emt 0:00:03]} Bxg2 {[%emt 0:00:05]} 28. Kxg2 {[%emt 0:00:09]} Rab8 {[%emt 0:03:03]} 29. Rff1 {[%emt 0:04:11]} Re2+ {[%emt 0:01:49]} 30. Kg3 {[%emt 0:00:46]} Ne4+ {[%emt 0:00:37]} 31. Kf3 {[%emt 0:00:01]} b2 {[%emt 0:00:25]} 32. Bf4 {[%emt 0:00:01]} Rb3+ {[%emt 0:01:50]} 33. Kxe2 {[%emt 0:00:01]} c4 {[%emt 0:00:07]} 34. Rb1 {[%emt 0:02:00]} g6 {[%emt 0:00:02]} 35. fxg6 {[%emt 0:00:14]} hxg6 {[%emt 0:00:01]} 36. Ng3 {[%emt 0:00:15]} Nc3+ {[%emt 0:00:28]} 37. Kd2 {[%emt 0:00:06]} Nxb1+ {[%emt 0:00:07]} 38. Rxb1 {[%emt 0:00:01]} Rd3+ {[%emt 0:00:45]} 39. Kc2 {[%emt 0:00:52]} Rxd4 {[%emt 0:00:06]} 40. Bd2 {[%emt 0:00:42]} Rh4 {[%emt 0:01:03]} 41. Nf1 {[%emt 0:30:11]} Rg4 {[%emt 0:31:05]} 42. Rxb2 {[%emt 0:01:24]} Rg2 {[%emt 0:00:34]} 43. Kc3 {[%emt 0:01:09]} 1-0

[Event "Festival Groningen-A 2024"]
[Site "Groningen"]
[Date "2024.12.22"]
[Round "2.19"]
[White "Van der Hagen, Loek"]
[Black "Grooten, Tommy"]
[Result "1/2-1/2"]
[ECO "B81"]
[WhiteElo "2315"]
[BlackElo "2153"]
[Annotator "RC"]
[PlyCount "105"]
[EventDate "2024.12.21"]
[EventType "swiss"]
[EventCountry "NED"]
[SourceTitle "playchess.com"]
[Source "ChessBase"]
[SourceQuality "1"]
[TimeControl "40/5400+30:1800+30"]

1. e4 {[%emt 0:00:03]} c5 {[%emt 0:00:04]} 2. Nf3 {[%emt 0:00:19]} e6 {[%emt 0:00:05]} 3. d4 {[%emt 0:00:10]} cxd4 {[%emt 0:00:05]} 4. Nxd4 {[%emt 0:00:05]} Nf6 {[%emt 0:00:06]} 5. Nc3 {[%emt 0:00:38]} d6 {[%emt 0:00:05]} 6. g4 {[%emt 0:00:39]} h6 {[%emt 0:00:15]} 7. Rg1 {[%emt 0:00:33]} Nc6 {[%emt 0:00:10]} 8. Be3 {[%emt 0:00:44]} Be7 {[%emt 0:00:05]} 9. Qe2 {[%emt 0:00:34]} Nxd4 {[%emt 0:00:08]} 10. Bxd4 {[%emt 0:00:05]} e5 {[%emt 0:00:06]} 11. Be3 {[%emt 0:00:17]} Be6 {[%emt 0:00:06]} 12. O-O-O {[%emt 0:00:50]} Nd7 {[%emt 0:00:13]} 13. Kb1 {[%emt 0:08:12]} Rc8 {[%emt 0:21:05]} 14. Nd5 {[%emt 0:14:04]} Bxd5 {[%emt 0:03:30]} 15. Rxd5 {[%emt 0:09:50]} a6 {[%emt 0:02:13]} 16. Rd1 {[%emt 0:10:46]} Nc5 {[%emt 0:10:36]} 17. f4 {[%emt 0:09:56]} exf4 {[%emt 0:06:26]} 18. Bxf4 {[%emt 0:01:22]} Qb6 {[%emt 0:00:47]} 19. Rg3 {[%emt 0:03:42]} O-O {[%emt 0:03:14]} 20. c3 {[%emt 0:11:47]} Rfe8 {[%emt 0:16:08]} 21. Bg2 {[%emt 0:08:21]} Na4 {[%emt 0:10:16]} 22. Qc2 {[%emt 0:02:28]} Nc5 {[%emt 0:09:05]} 23. Rd5 {[%emt 0:03:18]} Ne6 {[%emt 0:04:47]} 24. Be3 {[%emt 0:00:06]} Qc7 {[%emt 0:00:15]} 25. Rf5 {[%emt 0:07:38]} Bg5 {[%emt 0:01:30]} 26. Qd2 {[%emt 0:02:55]} Qe7 {[%emt 0:02:47]} 27. e5 {[%emt 0:02:27]} dxe5 {[%emt 0:01:17]} 28. Rxe5 {[%emt 0:00:34]} Red8 {[%emt 0:00:18]} 29. Rd5 {[%emt 0:01:41]} Rxd5 {[%emt 0:00:20]} 30. Qxd5 {[%emt 0:00:43]} b5 {[%emt 0:01:36]} 31. Bxg5 {[%emt 0:00:36]} Nxg5 {[%emt 0:00:18]} 32. Rd3 {[%emt 0:00:29]} b4 {[%emt 0:01:27]} 33. cxb4 {[%emt 0:00:33]} Qxb4 {[%emt 0:00:51]} 34. h3 {[%emt 0:00:31]} Ne6 {[%emt 0:00:50]} 35. Qb3 {[%emt 0:00:22]} Qc5 {[%emt 0:00:54]} 36. Qd1 {[%emt 0:00:28]} Rb8 {[%emt 0:01:02]} 37. Rd2 {[%emt 0:00:38]} a5 {[%emt 0:00:23]} 38. Bd5 {[%emt 0:00:12]} Nf4 {[%emt 0:01:36]} 39. Be4 {[%emt 0:00:24]} Qe7 {[%emt 0:00:47]} 40. Bc2 {[%emt 0:00:52]} Nxh3 {[%emt 0:01:14]} 41. Rd7 {[%emt 0:00:51]} Qf6 {[%emt 0:00:38]} 42. Qd4 {[%emt 0:06:09]} Qxd4 {[%emt 0:03:48]} 43. Rxd4 {[%emt 0:00:06]} g6 {[%emt 0:01:32]} 44. Rd5 {[%emt 0:01:21]} Ra8 {[%emt 0:04:27]} 45. Bd1 {[%emt 0:11:03]} Ra7 {[%emt 0:03:18]} 46. a3 {[%emt 0:01:22]} Nf4 {[%emt 0:00:22]} 47. Rd4 {[%emt 0:04:17]} Ne6 {[%emt 0:00:30]} 48. Rd5 {[%emt 0:00:33]} Kf8 {[%emt 0:02:24]} 49. Ka2 {[%emt 0:00:58]} Ke7 {[%emt 0:01:26]} 50. Bf3 {[%emt 0:04:59]} Ng5 {[%emt 0:04:31]} 51. Be2 {[%emt 0:00:29]} Ne6 {[%emt 0:00:32]} 52. Bf3 {[%emt 0:00:01]} Ng5 {[%emt 0:00:20]} 53. Be2 {[%emt 0:00:03]} 1/2-1/2

[Event "Festival Groningen-A 2024"]
[Site "Groningen"]
[Date "2024.12.22"]
[Round "2.20"]
[White "Van Foreest, Machteld"]
[Black "Zecha, Oscar"]
[Result "1-0"]
[ECO "C54"]
[WhiteElo "2309"]
[BlackElo "2134"]
[Annotator "RC"]
[PlyCount "55"]
[EventDate "2024.12.21"]
[EventType "swiss"]
[EventCountry "NED"]
[SourceTitle "playchess.com"]
[Source "ChessBase"]
[SourceQuality "1"]
[TimeControl "40/5400+30:1800+30"]

1. e4 {[%emt 0:00:05]} e5 {[%emt 0:00:04]} 2. Nf3 {[%emt 0:00:03]} Nc6 {[%emt 0:00:03]} 3. Bc4 {[%emt 0:00:24]} Bc5 {[%emt 0:00:05]} 4. c3 {[%emt 0:00:02]} Nf6 {[%emt 0:00:06]} 5. d3 {[%emt 0:00:02]} d6 {[%emt 0:00:05]} 6. Nbd2 {[%emt 0:00:42]} a6 {[%emt 0:00:17]} 7. h3 {[%emt 0:02:43]} Ba7 {[%emt 0:00:13]} 8. Bb3 {[%emt 0:00:02]} Be6 {[%emt 0:00:15]} 9. O-O {[%emt 0:00:41]} h6 {[%emt 0:05:39]} 10. Bxe6 {[%emt 0:10:20]} fxe6 {[%emt 0:01:05]} 11. Qb3 {[%emt 0:00:16]} Qc8 {[%emt 0:00:39]} 12. Nc4 {[%emt 0:07:03]} O-O {[%emt 0:03:15]} 13. Be3 {[%emt 0:07:34]} Bxe3 {[%emt 0:02:37]} 14. fxe3 {[%emt 0:03:01]} Nh5 {[%emt 0:06:46]} 15. Rf2 {[%emt 0:02:03]} b5 {[%emt 0:09:23]} 16. Ncd2 {[%emt 0:00:43]} Qe8 {[%emt 0:00:37]} 17. d4 {[%emt 0:03:46]} Qg6 {[%emt 0:05:28]} 18. Nh4 {[%emt 0:08:31]} Qg5 {[%emt 0:06:47]} 19. Qxe6+ {[%emt 0:00:57]} Kh7 {[%emt 0:00:26]} 20. Ndf3 {[%emt 0:01:48]} Qf6 {[%emt 0:07:58]} 21. Qg4 {[%emt 0:00:44]} g6 {[%emt 0:02:01]} 22. Qd7+ {[%emt 0:06:27]} Ne7 {[%emt 0:00:16]} 23. dxe5 {[%emt 0:01:43]} dxe5 {[%emt 0:00:55]} 24. Nxg6 {[%emt 0:00:17]} Qxg6 {[%emt 0:01:02]} 25. Qxe7+ {[%emt 0:00:07]} Kg8 {[%emt 0:02:06]} 26. Nxe5 {[%emt 0:00:30]} Qb6 {[%emt 0:03:38]} 27. Rxf8+ {[%emt 0:00:30]} Rxf8 {[%emt 0:00:07]} 28. Qxf8+ {[%emt 0:00:04]} 1-0

[Event "Festival Groningen-A 2024"]
[Site "Groningen"]
[Date "2024.12.22"]
[Round "2.21"]
[White "De Jong, Migchiel"]
[Black "Jakhari, Ansh"]
[Result "1-0"]
[ECO "E61"]
[WhiteElo "2275"]
[BlackElo "2126"]
[Annotator "RC"]
[PlyCount "87"]
[EventDate "2024.12.21"]
[EventType "swiss"]
[EventCountry "NED"]
[SourceTitle "playchess.com"]
[Source "ChessBase"]
[SourceQuality "1"]
[TimeControl "40/5400+30:1800+30"]

1. Nf3 {[%emt 0:00:07]} Nf6 {[%emt 0:00:11]} 2. c4 {[%emt 0:01:02]} g6 {[%emt 0:00:12]} 3. d4 {[%emt 0:01:55]} Bg7 {[%emt 0:00:12]} 4. e3 {[%emt 0:01:47]} d6 {[%emt 0:00:37]} 5. Nc3 {[%emt 0:00:19]} O-O {[%emt 0:00:12]} 6. Be2 {[%emt 0:00:36]} a6 {[%emt 0:04:04]} 7. O-O {[%emt 0:01:42]} c6 {[%emt 0:03:05]} 8. b4 {[%emt 0:17:23]} Nbd7 {[%emt 0:11:53]} 9. Bb2 {[%emt 0:03:53]} e5 {[%emt 0:08:11]} 10. Qc2 {[%emt 0:02:30]} Re8 {[%emt 0:01:32]} 11. Rfd1 {[%emt 0:02:20]} e4 {[%emt 0:03:08]} 12. Nd2 {[%emt 0:00:44]} Qe7 {[%emt 0:01:53]} 13. b5 {[%emt 0:03:16]} Nf8 {[%emt 0:07:11]} 14. bxc6 {[%emt 0:02:16]} bxc6 {[%emt 0:00:21]} 15. Ba3 {[%emt 0:00:30]} Bf5 {[%emt 0:03:14]} 16. Qa4 {[%emt 0:03:25]} Qc7 {[%emt 0:07:02]} 17. Rab1 {[%emt 0:01:12]} N8d7 {[%emt 0:05:50]} 18. Rb2 {[%emt 0:08:08]} c5 {[%emt 0:07:36]} 19. Nb3 {[%emt 0:01:38]} cxd4 {[%emt 0:11:00]} 20. Nxd4 {[%emt 0:00:50]} Nc5 {[%emt 0:00:18]} 21. Qc6 {[%emt 0:03:15]} Qxc6 {[%emt 0:01:05]} 22. Nxc6 {[%emt 0:00:07]} Bd7 {[%emt 0:06:56]} 23. Rxd6 {[%emt 0:06:03]} Nd3 {[%emt 0:02:58]} 24. Rb7 {[%emt 0:02:10]} Rac8 {[%emt 0:02:43]} 25. Na5 {[%emt 0:03:27]} Bf5 {[%emt 0:02:39]} 26. Rxa6 {[%emt 0:02:22]} Nd7 {[%emt 0:04:20]} 27. Nd5 {[%emt 0:00:48]} N3c5 {[%emt 0:00:41]} 28. Rc7 {[%emt 0:05:34]} Rxc7 {[%emt 0:03:01]} 29. Nxc7 {[%emt 0:00:07]} Nxa6 {[%emt 0:01:47]} 30. Nxe8 {[%emt 0:00:11]} Bc3 {[%emt 0:00:01]} 31. Nc6 {[%emt 0:01:13]} Be6 {[%emt 0:00:09]} 32. Nd4 {[%emt 0:01:31]} Ndc5 {[%emt 0:01:24]} 33. Nc7 {[%emt 0:01:14]} Nb4 {[%emt 0:00:56]} 34. Ncb5 {[%emt 0:01:43]} Bd2 {[%emt 0:00:17]} 35. Nb3 {[%emt 0:00:39]} Nxb3 {[%emt 0:00:33]} 36. axb3 {[%emt 0:00:08]} Bd7 {[%emt 0:00:18]} 37. Nc7 {[%emt 0:01:12]} Bc6 {[%emt 0:00:34]} 38. Nb5 {[%emt 0:03:31]} Bd7 {[%emt 0:00:52]} 39. Nd4 {[%emt 0:01:38]} Nd3 {[%emt 0:00:27]} 40. c5 {[%emt 0:00:55]} Be1 {[%emt 0:00:17]} 41. Kf1 {[%emt 0:30:30]} Bxf2 {[%emt 0:01:26]} 42. c6 {[%emt 0:00:00]} Bc8 {[%emt 0:01:09]} 43. Bxd3 {[%emt 0:00:00]} Bxe3 {[%emt 0:00:52]} 44. Nc2 {[%emt 0:00:00]} 1-0

[Event "Festival Groningen-A 2024"]
[Site "Groningen"]
[Date "2024.12.22"]
[Round "2.22"]
[White "Van Rootselaar, Rik"]
[Black "Kazarjan, Gachatur"]
[Result "1/2-1/2"]
[ECO "D30"]
[WhiteElo "2265"]
[BlackElo "2067"]
[Annotator "RC"]
[PlyCount "108"]
[EventDate "2024.12.21"]
[EventType "swiss"]
[EventCountry "NED"]
[SourceTitle "playchess.com"]
[Source "ChessBase"]
[SourceQuality "1"]
[TimeControl "40/5400+30:1800+30"]

1. d4 {[%emt 0:00:03]} d5 {[%emt 0:02:56]} 2. c4 {[%emt 0:00:06]} e6 {[%emt 0:00:06]} 3. Nf3 {[%emt 0:00:06]} c5 {[%emt 0:00:03]} 4. cxd5 {[%emt 0:00:36]} exd5 {[%emt 0:00:06]} 5. g3 {[%emt 0:00:27]} Nf6 {[%emt 0:00:07]} 6. Bg2 {[%emt 0:00:13]} Nc6 {[%emt 0:00:04]} 7. O-O {[%emt 0:00:32]} Be7 {[%emt 0:00:03]} 8. dxc5 {[%emt 0:00:39]} Bxc5 {[%emt 0:00:30]} 9. a3 {[%emt 0:00:30]} Ne4 {[%emt 0:00:08]} 10. Nfd2 {[%emt 0:00:41]} O-O {[%emt 0:01:04]} 11. Nxe4 {[%emt 0:00:19]} dxe4 {[%emt 0:00:04]} 12. Qxd8 {[%emt 0:00:11]} Rxd8 {[%emt 0:00:03]} 13. Nc3 {[%emt 0:00:35]} Nd4 {[%emt 0:19:51]} 14. Be3 {[%emt 0:40:54]} Bg4 {[%emt 0:15:42]} 15. h3 {[%emt 0:08:10]} Bh5 {[%emt 0:00:34]} 16. g4 {[%emt 0:01:49]} Bg6 {[%emt 0:00:06]} 17. b4 {[%emt 0:01:48]} Be7 {[%emt 0:03:36]} 18. Ra2 {[%emt 0:04:08]} a5 {[%emt 0:02:04]} 19. bxa5 {[%emt 0:03:58]} Rxa5 {[%emt 0:03:02]} 20. Rd1 {[%emt 0:03:03]} Ne6 {[%emt 0:15:38]} 21. Rxd8+ {[%emt 0:01:01]} Bxd8 {[%emt 0:05:40]} 22. a4 {[%emt 0:07:44]} h6 {[%emt 0:08:34]} 23. Bxe4 {[%emt 0:10:28]} Bxe4 {[%emt 0:01:11]} 24. Nxe4 {[%emt 0:00:02]} b5 {[%emt 0:01:26]} 25. Nc3 {[%emt 0:00:10]} b4 {[%emt 0:01:06]} 26. Nb1 {[%emt 0:03:36]} b3 {[%emt 0:07:33]} 27. Rb2 {[%emt 0:02:21]} Rxa4 {[%emt 0:00:37]} 28. Rxb3 {[%emt 0:00:05]} Ra2 {[%emt 0:03:44]} 29. Nc3 {[%emt 0:02:11]} Rc2 {[%emt 0:00:06]} 30. Kf1 {[%emt 0:01:02]} Bg5 {[%emt 0:01:58]} 31. Bxg5 {[%emt 0:02:10]} hxg5 {[%emt 0:01:04]} 32. e3 {[%emt 0:01:02]} Nc5 {[%emt 0:01:11]} 33. Ra3 {[%emt 0:00:29]} Kh7 {[%emt 0:01:06]} 34. Ne2 {[%emt 0:01:09]} Ne4 {[%emt 0:02:47]} 35. f3 {[%emt 0:01:10]} Nd2+ {[%emt 0:01:10]} 36. Kf2 {[%emt 0:00:08]} Rb2 {[%emt 0:00:26]} 37. e4 {[%emt 0:02:46]} Nc4 {[%emt 0:02:00]} 38. Rc3 {[%emt 0:00:31]} Ne5 {[%emt 0:00:17]} 39. Ke3 {[%emt 0:01:00]} Rb1 {[%emt 0:00:30]} 40. Rc1 {[%emt 0:01:36]} Rb3+ {[%emt 0:00:37]} 41. Rc3 {[%emt 0:30:07]} Rb6 {[%emt 0:02:31]} 42. f4 {[%emt 0:00:00]} gxf4+ {[%emt 0:00:38]} 43. Kxf4 {[%emt 0:00:00]} Ng6+ {[%emt 0:02:26]} 44. Kg3 {[%emt 0:00:00]} Rb4 {[%emt 0:02:29]} 45. Re3 {[%emt 0:00:00]} f6 {[%emt 0:00:52]} 46. Nc3 {[%emt 0:00:00]} Kh6 {[%emt 0:03:02]} 47. Nd5 {[%emt 0:00:00]} Rb2 {[%emt 0:00:13]} 48. Ra3 {[%emt 0:00:00]} Re2 {[%emt 0:03:24]} 49. Ne3 {[%emt 0:00:00]} Kg5 {[%emt 0:05:38]} 50. Nf5 {[%emt 0:00:00]} Rxe4 {[%emt 0:01:19]} 51. Ra7 {[%emt 0:00:00]} Rb4 {[%emt 0:00:20]} 52. Rxg7 {[%emt 0:00:00]} Rxg4+ {[%emt 0:00:24]} 53. Kh2 {[%emt 0:00:00]} Re4 {[%emt 0:00:30]} 54. Ng3 {[%emt 0:00:00]} Ra4 {[%emt 0:00:39]} 1/2-1/2

[Event "Festival Groningen-A 2024"]
[Site "Groningen"]
[Date "2024.12.22"]
[Round "2.23"]
[White "Van Helvoort, Rob"]
[Black "Ratsma, Midas"]
[Result "0-1"]
[ECO "C65"]
[WhiteElo "2135"]
[BlackElo "2326"]
[Annotator "RC"]
[PlyCount "66"]
[EventDate "2024.12.21"]
[EventType "swiss"]
[EventCountry "NED"]
[SourceTitle "playchess.com"]
[Source "ChessBase"]
[SourceQuality "1"]
[TimeControl "40/5400+30:1800+30"]

1. e4 {[%emt 0:00:07]} e5 {[%emt 0:00:04]} 2. Nf3 {[%emt 0:00:09]} Nc6 {[%emt 0:00:04]} 3. Bb5 {[%emt 0:00:43]} Nf6 {[%emt 0:00:05]} 4. d3 {[%emt 0:00:33]} Bc5 {[%emt 0:00:05]} 5. Bxc6 {[%emt 0:00:57]} dxc6 {[%emt 0:00:17]} 6. Nbd2 {[%emt 0:00:34]} O-O {[%emt 0:00:59]} 7. Nc4 {[%emt 0:03:15]} Nd7 {[%emt 0:00:06]} 8. O-O {[%emt 0:01:11]} Re8 {[%emt 0:00:06]} 9. Kh1 {[%emt 0:05:08]} Bf8 {[%emt 0:00:28]} 10. Bd2 {[%emt 0:04:16]} f6 {[%emt 0:00:30]} 11. b4 {[%emt 0:02:45]} Nb6 {[%emt 0:00:10]} 12. Nb2 {[%emt 0:08:00]} Be6 {[%emt 0:00:44]} 13. a4 {[%emt 0:07:07]} Qd7 {[%emt 0:00:04]} 14. a5 {[%emt 0:03:28]} Nc8 {[%emt 0:00:04]} 15. c4 {[%emt 0:03:09]} c5 {[%emt 0:02:39]} 16. bxc5 {[%emt 0:05:01]} Bxc5 {[%emt 0:00:37]} 17. Be3 {[%emt 0:02:29]} Bf8 {[%emt 0:03:44]} 18. c5 {[%emt 0:06:21]} Rd8 {[%emt 0:03:23]} 19. Qc2 {[%emt 0:01:47]} Ne7 {[%emt 0:01:45]} 20. Qc3 {[%emt 0:13:57]} Nc6 {[%emt 0:02:22]} 21. Ng1 {[%emt 0:05:57]} Nd4 {[%emt 0:01:57]} 22. f4 {[%emt 0:07:12]} exf4 {[%emt 0:01:15]} 23. Rxf4 {[%emt 0:00:13]} Rac8 {[%emt 0:06:09]} 24. Ra4 {[%emt 0:00:57]} Nb5 {[%emt 0:01:05]} 25. Qc2 {[%emt 0:01:18]} b6 {[%emt 0:04:38]} 26. d4 {[%emt 0:01:03]} bxc5 {[%emt 0:04:08]} 27. d5 {[%emt 0:00:19]} Bf7 {[%emt 0:00:04]} 28. Bxc5 {[%emt 0:03:17]} c6 {[%emt 0:00:05]} 29. Bxf8 {[%emt 0:01:33]} Kxf8 {[%emt 0:06:29]} 30. e5 {[%emt 0:01:13]} fxe5 {[%emt 0:06:23]} 31. Rxf7+ {[%emt 0:01:31]} Qxf7 {[%emt 0:01:28]} 32. dxc6 {[%emt 0:00:30]} Kg8 {[%emt 0:00:47]} 33. Rc4 {[%emt 0:05:12]} Na3 {[%emt 0:00:34]} 0-1

[Event "Festival Groningen-A 2024"]
[Site "Groningen"]
[Date "2024.12.22"]
[Round "2.24"]
[White "Madularea, David"]
[Black "Duijker, Rick"]
[Result "1-0"]
[ECO "C67"]
[WhiteElo "2245"]
[BlackElo "2146"]
[Annotator "RC"]
[PlyCount "41"]
[EventDate "2024.12.21"]
[EventType "swiss"]
[EventCountry "NED"]
[SourceTitle "playchess.com"]
[Source "ChessBase"]
[SourceQuality "1"]
[TimeControl "40/5400+30:1800+30"]

1. e4 {[%emt 0:00:03]} e5 {[%emt 0:12:25]} 2. Nf3 {[%emt 0:00:04]} Nc6 {[%emt 0:00:07]} 3. Bb5 {[%emt 0:00:03]} Nf6 {[%emt 0:00:08]} 4. O-O {[%emt 0:02:33]} Nxe4 {[%emt 0:00:19]} 5. Re1 {[%emt 0:00:03]} Nd6 {[%emt 0:00:12]} 6. Nxe5 {[%emt 0:00:04]} Nxe5 {[%emt 0:00:18]} 7. Rxe5+ {[%emt 0:00:04]} Be7 {[%emt 0:00:05]} 8. Bf1 {[%emt 0:00:08]} O-O {[%emt 0:00:12]} 9. d4 {[%emt 0:00:04]} Bf6 {[%emt 0:00:18]} 10. Bd3 {[%emt 0:00:03]} g6 {[%emt 0:03:26]} 11. Nc3 {[%emt 0:05:30]} Bg7 {[%emt 0:06:47]} 12. Qf3 {[%emt 0:06:53]} Ne8 {[%emt 0:07:18]} 13. Bc4 {[%emt 0:08:14]} d6 {[%emt 0:15:05]} 14. Bg5 {[%emt 0:00:39]} Qd7 {[%emt 0:50:50]} 15. Re7 {[%emt 0:05:45]} Qf5 {[%emt 0:00:00]} 16. Qe3 {[%emt 0:05:54]} Bxd4 {[%emt 0:00:00]} 17. Qxd4 {[%emt 0:01:00]} Qxg5 {[%emt 0:00:00]} 18. Bxf7+ {[%emt 0:00:06]} Rxf7 {[%emt 0:00:00]} 19. Rxe8+ {[%emt 0:00:04]} Rf8 {[%emt 0:00:00]} 20. Rxf8+ {[%emt 0:00:36]} Kxf8 {[%emt 0:00:00]} 21. Qh8+ {[%emt 0:00:11]} 1-0

[Event "Festival Groningen-A 2024"]
[Site "Groningen"]
[Date "2024.12.22"]
[Round "2.25"]
[White "Noordenbos, Daan"]
[Black "Bakija, Alan"]
[Result "1/2-1/2"]
[ECO "C79"]
[WhiteElo "2130"]
[BlackElo "2233"]
[Annotator "RC"]
[PlyCount "66"]
[EventDate "2024.12.21"]
[EventType "swiss"]
[EventCountry "NED"]
[SourceTitle "playchess.com"]
[Source "ChessBase"]
[SourceQuality "1"]
[TimeControl "40/5400+30:1800+30"]

1. e4 {[%emt 0:00:04]} e5 {[%emt 0:00:03]} 2. Nf3 {[%emt 0:00:15]} Nc6 {[%emt 0:00:04]} 3. Bb5 {[%emt 0:00:12]} a6 {[%emt 0:00:04]} 4. Ba4 {[%emt 0:00:15]} d6 {[%emt 0:00:08]} 5. c3 {[%emt 0:08:30]} Nf6 {[%emt 0:00:27]} 6. O-O {[%emt 0:00:45]} Bd7 {[%emt 0:00:05]} 7. d4 {[%emt 0:03:16]} g6 {[%emt 0:00:44]} 8. Nbd2 {[%emt 0:12:21]} Bg7 {[%emt 0:02:54]} 9. Bxc6 {[%emt 0:12:16]} Bxc6 {[%emt 0:00:06]} 10. dxe5 {[%emt 0:00:14]} Nxe4 {[%emt 0:10:24]} 11. Nxe4 {[%emt 0:05:18]} Bxe4 {[%emt 0:00:06]} 12. Ng5 {[%emt 0:07:24]} Bf5 {[%emt 0:04:12]} 13. Qb3 {[%emt 0:00:58]} O-O {[%emt 0:02:57]} 14. e6 {[%emt 0:00:44]} fxe6 {[%emt 0:11:59]} 15. Nxe6 {[%emt 0:00:13]} Bxe6 {[%emt 0:00:06]} 16. Qxe6+ {[%emt 0:00:08]} Kh8 {[%emt 0:00:43]} 17. Qg4 {[%emt 0:03:29]} Qc8 {[%emt 0:06:05]} 18. Qxc8 {[%emt 0:02:52]} Raxc8 {[%emt 0:00:05]} 19. Be3 {[%emt 0:00:30]} Rce8 {[%emt 0:00:17]} 20. Rfe1 {[%emt 0:03:30]} Kg8 {[%emt 0:03:42]} 21. Kf1 {[%emt 0:02:33]} Rf5 {[%emt 0:04:16]} 22. Rad1 {[%emt 0:06:10]} Ra5 {[%emt 0:00:31]} 23. a3 {[%emt 0:00:17]} Rae5 {[%emt 0:01:24]} 24. Bf4 {[%emt 0:01:18]} Rxe1+ {[%emt 0:00:28]} 25. Rxe1 {[%emt 0:00:05]} Rxe1+ {[%emt 0:03:35]} 26. Kxe1 {[%emt 0:00:08]} b5 {[%emt 0:00:37]} 27. Kd2 {[%emt 0:01:07]} Kf7 {[%emt 0:00:52]} 28. b3 {[%emt 0:08:27]} Ke6 {[%emt 0:00:10]} 29. Be3 {[%emt 0:03:47]} d5 {[%emt 0:13:14]} 30. Kd3 {[%emt 0:06:25]} Kd6 {[%emt 0:07:47]} 31. Bf4+ {[%emt 0:05:01]} Kd7 {[%emt 0:06:18]} 32. Be3 {[%emt 0:00:10]} Kd6 {[%emt 0:02:02]} 33. Bf4+ {[%emt 0:00:09]} Kd7 {[%emt 0:00:23]} 1/2-1/2

[Event "Festival Groningen-A 2024"]
[Site "Groningen"]
[Date "2024.12.22"]
[Round "2.26"]
[White "Cernov, Henrik"]
[Black "Khoo-Thwe, Louis"]
[Result "1-0"]
[ECO "C68"]
[WhiteElo "2187"]
[BlackElo "2124"]
[Annotator "RC"]
[PlyCount "53"]
[EventDate "2024.12.21"]
[EventType "swiss"]
[EventCountry "NED"]
[SourceTitle "playchess.com"]
[Source "ChessBase"]
[SourceQuality "1"]
[TimeControl "40/5400+30:1800+30"]

1. e4 {[%emt 0:00:01]} e5 {[%emt 0:00:16]} 2. Nf3 {[%emt 0:00:03]} Nc6 {[%emt 0:00:06]} 3. Bb5 {[%emt 0:00:02]} a6 {[%emt 0:00:08]} 4. Bxc6 {[%emt 0:00:03]} dxc6 {[%emt 0:00:07]} 5. Nc3 {[%emt 0:00:03]} Qf6 {[%emt 0:01:54]} 6. d4 {[%emt 0:03:33]} exd4 {[%emt 0:00:29]} 7. Bg5 {[%emt 0:05:15]} Qg6 {[%emt 0:03:42]} 8. Qxd4 {[%emt 0:00:12]} Be7 {[%emt 0:01:57]} 9. Bxe7 {[%emt 0:03:49]} Nxe7 {[%emt 0:00:09]} 10. O-O-O {[%emt 0:03:26]} O-O {[%emt 0:02:33]} 11. h4 {[%emt 0:09:25]} Bg4 {[%emt 0:25:58]} 12. Kb1 {[%emt 0:11:43]} Qh5 {[%emt 0:03:58]} 13. Ne2 {[%emt 0:06:14]} Bxf3 {[%emt 0:04:56]} 14. Ng3 {[%emt 0:03:47]} Qa5 {[%emt 0:14:59]} 15. gxf3 {[%emt 0:00:12]} h6 {[%emt 0:07:30]} 16. f4 {[%emt 0:04:37]} c5 {[%emt 0:06:57]} 17. Qe3 {[%emt 0:01:21]} Rad8 {[%emt 0:01:46]} 18. f5 {[%emt 0:02:28]} Qb6 {[%emt 0:10:39]} 19. Nh5 {[%emt 0:02:10]} Kh7 {[%emt 0:04:11]} 20. f6 {[%emt 0:17:00]} gxf6 {[%emt 0:02:24]} 21. e5 {[%emt 0:01:35]} Ng6 {[%emt 0:05:04]} 22. Nxf6+ {[%emt 0:00:49]} Kg7 {[%emt 0:00:07]} 23. h5 {[%emt 0:01:01]} Rxd1+ {[%emt 0:01:00]} 24. Rxd1 {[%emt 0:00:03]} c4 {[%emt 0:00:59]} 25. hxg6 {[%emt 0:01:12]} Qxe3 {[%emt 0:00:15]} 26. fxe3 {[%emt 0:00:02]} Kxg6 {[%emt 0:00:16]} 27. e4 {[%emt 0:00:52]} 1-0